Workbook

Sheet y = Cosh x
D1: The Hyperbolic Cosh Function
D3: This program lets you investigate the
D4: definition of the hyperbolic cosine function
D5: cosh x = ½(ex+ e-x)
D10: What is the interval of x-values?
D11: xMin = | E11: -1
D12: xMax = | E12: 2
I15: Trace along the various curves:
I17: x = | J17: =xMin+K17*dx -> 0.605 | K17: 107
I18: e x = | J18: =EXP(x0) -> 1.8313
B19: Click each item below for suggestions and investigations | I19: e -x = | J19: =EXP(-x0) -> 0.5461
D20: Item 1 | I20: cosh x = ( | J20: ="e^("&TEXT(x0,"0.000")&") " -> e^(0.605) | K20: + | L20: ="e^(-"&TEXT(x0,"0.000")&") " -> e^(-0.605) | M20: =") /2" -> ) /2
D21: Item 2 | I21: = ( | J21: =J18 -> 1.8313 | K21: + | L21: =J19 -> 0.5461 | M21: =") /2 = "&TEXT((J18+J19)/2,"0.000") -> ) /2 = 1.189
D22: Item 3
D23: Item 4
A27: To access/download all the DIGMath Apps for Calculus
A28: Click this link: | D28: DIGMath for Calculus
A30: Created by: Sheldon P. Gordon
A31: Farmingdale State College
A32: Development of this module was supported by the
A33: NSF's Division of Undergraduate Education
A34: under grants DUE-0310123 and DUE-0442160.

Sheet y = Sinh x
D1: The Hyperbolic Sinh Function
D3: This program lets you investigate the
D4: definition of the hyperbolic sine function
D5: sinh x = ½(ex- e-x)
D10: What is the interval of x-values?
D11: xMin = | E11: -3
D12: xMax = | E12: 3
K15: Trace along the various curves:
K17: x = | L17: =xxMin+M17*dxx -> -2.01 | M17: 33
K18: e x = | L18: =EXP(xx0) -> 0.1340
A19: Click each item below for suggestions and investigations | K19: e -x = | L19: =EXP(-xx0) -> 7.4633
D20: Item 1 | K20: sinh x = ( | L20: ="e^("&TEXT(xx0,"0.00")&") " -> e^(-2.01) | M20: - | N20: ="e^(-"&TEXT(ABS(xx0),"0.00")&") " -> e^(-2.01) | O20: =") /2" -> ) /2
D21: Item 2 | K21: = ( | L21: =L18 -> 0.1340 | M21: - | N21: =L19 -> 7.4633 | O21: =") /2 = "&TEXT((L18-L19)/2,"0.000") -> ) /2 = -3.665
D22: Item 3
D23: Item 4
A27: To access/download all the DIGMath Apps for Calculus
A28: Click this link: | D28: DIGMath for Calculus
A30: Created by: Sheldon P. Gordon
A31: Farmingdale State College
A32: Development of this module was supported by the
A33: NSF's Division of Undergraduate Education
A34: under grants DUE-0310123 and DUE-0442160.

Sheet Sheet3
B2: e^x | C2: e^-x | D2: cosh x | J2: x | K2: e^x | L2: e^-x | M2: sinh x
A3: =xMin -> -1.00 | B3: =EXP(A3) -> 0.36788 | C3: =EXP(-A3) -> 2.71828 | D3: =(B3+C3)/2 -> 1.54308 | J3: =xxMin -> -3 | K3: =EXP(J3) -> 0.04978706837 | L3: =EXP(-J3) -> 20.08553692 | M3: =(K3-L3)/2 -> -10.01787493
A4: =A3+dx -> -0.99 | B4: =EXP(A4) -> 0.37344 | C4: =EXP(-A4) -> 2.67781 | D4: =(B4+C4)/2 -> 1.52563 | E4: x0 = | F4: =x0 -> 0.60500 | G4: =EXP(x0) -> 1.831252209 | H4: e^x | J4: =J3+dxx -> -2.97 | K4: =EXP(J4) -> 0.05130331033 | L4: =EXP(-J4) -> 19.4919196 | M4: =(K4-L4)/2 -> -9.720308143 | N4: xx0 = | O4: =xx0 -> -2.01000 | P4: =EXP(xx0) -> 0.1339886747 | Q4: e^x
A5: -0.97 | B5: 0.37908 | C5: 2.63794 | D5: 1.50851 | F5: 0.60500 | G5: 0 | J5: -2.94 | K5: =EXP(J5) -> 0.05286572874 | L5: =EXP(-J5) -> 18.91584631 | M5: =(K5-L5)/2 -> -9.431490292 | O5: -2.01000 | P5: 0
A6: -0.96 | B6: 0.38481 | C6: 2.59867 | D6: 1.49174 | F6: 0.60500 | G6: =EXP(-x0) -> 0.5460744266 | H6: e^-x | J6: -2.91 | K6: 0.05447572987 | L6: 18.35679857 | M6: -9.151161419 | O6: -2.01000 | P6: =EXP(-xx0) -> 7.463317347 | Q6: e^-x
A7: -0.94 | B7: 0.39063 | C7: 2.55998 | D7: 1.47530 | F7: 0.60500 | G7: 0 | J7: -2.88 | K7: 0.05613476283 | L7: 17.81427318 | M7: -8.879069208 | O7: -2.01000 | P7: 0
A8: -0.93 | B8: 0.39653 | C8: 2.52187 | D8: 1.45920 | F8: 0.60500 | G8: =(G4+G6)/2 -> 1.188663318 | H8: cosh x | J8: -2.85 | K8: 0.05784432087 | L8: 17.28778184 | M8: -8.61496876 | O8: -2.01000 | P8: =(P4-P6)/2 -> -3.664664336 | Q8: sinh x
A9: -0.91 | B9: 0.40252 | C9: 2.48432 | D9: 1.44342 | F9: 0.60500 | G9: 0 | J9: -2.82 | K9: 0.05960594271 | L9: 16.77685067 | M9: -8.358622365 | O9: -2.01000 | P9: 0
A10: -0.90 | B10: 0.40861 | C10: 2.44734 | D10: 1.42797 | E10: dx = | F10: =(xMax-xMin)/200 -> 0.015 | J10: -2.79 | K10: 0.06142121392 | L10: 16.2810198 | M10: -8.109799294 | N10: dxx = | O10: =(xxMax-xxMin)/200 -> 0.03
A11: -0.88 | B11: 0.41478 | C11: 2.41090 | D11: 1.41284 | J11: -2.76 | K11: 0.06329176836 | L11: 15.79984295 | M11: -7.86827559
A12: -0.87 | B12: 0.42105 | C12: 2.37501 | D12: 1.39803 | J12: -2.73 | K12: 0.06521928967 | L12: 15.33288702 | M12: -7.633833865
A13: -0.85 | B13: 0.42741 | C13: 2.33965 | D13: 1.38353 | J13: -2.7 | K13: 0.06720551274 | L13: 14.87973172 | M13: -7.406263106
A14: -0.84 | B14: 0.43387 | C14: 2.30481 | D14: 1.36934 | J14: -2.67 | K14: 0.06925222531 | L14: 14.43996919 | M14: -7.185358484
A15: -0.82 | B15: 0.44043 | C15: 2.27050 | D15: 1.35547 | J15: -2.64 | K15: 0.07136126956 | L15: 14.01320361 | M15: -6.970921169
A16: -0.81 | B16: 0.44709 | C16: 2.23670 | D16: 1.34189 | J16: -2.61 | K16: 0.07353454376 | L16: 13.59905085 | M16: -6.762758154
A17: -0.79 | B17: 0.45384 | C17: 2.20340 | D17: 1.32862 | J17: -2.58 | K17: 0.07577400402 | L17: 13.19713816 | M17: -6.560682078
A18: -0.78 | B18: 0.46070 | C18: 2.17059 | D18: 1.31565 | J18: -2.55 | K18: 0.078081666 | L18: 12.80710378 | M18: -6.364511058
A19: -0.76 | B19: 0.46767 | C19: 2.13828 | D19: 1.30297 | J19: -2.52 | K19: 0.08045960675 | L19: 12.42859666 | M19: -6.174068528
A20: -0.75 | B20: 0.47473 | C20: 2.10644 | D20: 1.29059 | J20: -2.49 | K20: 0.08290996658 | L20: 12.06127612 | M20: -5.989183077
A21: -0.73 | B21: 0.48191 | C21: 2.07508 | D21: 1.27849 | J21: -2.46 | K21: 0.08543495097 | L21: 11.70481154 | M21: -5.809688295
A22: -0.72 | B22: 0.48919 | C22: 2.04419 | D22: 1.26669 | J22: -2.43 | K22: 0.08803683258 | L22: 11.35888208 | M22: -5.635422624
A23: -0.70 | B23: 0.49659 | C23: 2.01375 | D23: 1.25517 | J23: -2.4 | K23: 0.09071795329 | L23: 11.02317638 | M23: -5.466229214
A24: -0.69 | B24: 0.50409 | C24: 1.98377 | D24: 1.24393 | J24: -2.37 | K24: 0.09348072628 | L24: 10.69739228 | M24: -5.301955779
A25: -0.67 | B25: 0.51171 | C25: 1.95424 | D25: 1.23297 | J25: -2.34 | K25: 0.09632763823 | L25: 10.38123656 | M25: -5.142454462
A26: -0.66 | B26: 0.51944 | C26: 1.92514 | D26: 1.22229 | J26: -2.31 | K26: 0.09926125156 | L26: 10.07442466 | M26: -4.987581702
A27: -0.64 | B27: 0.52729 | C27: 1.89648 | D27: 1.21189 | J27: -2.28 | K27: 0.1022842067 | L27: 9.77668041 | M27: -4.837198101
A28: -0.63 | B28: 0.53526 | C28: 1.86825 | D28: 1.20175 | J28: -2.25 | K28: 0.1053992246 | L28: 9.487735836 | M28: -4.691168306
A29: -0.61 | B29: 0.54335 | C29: 1.84043 | D29: 1.19189 | J29: -2.22 | K29: 0.1086091088 | L29: 9.207330866 | M29: -4.549360879
A30: -0.60 | B30: 0.55156 | C30: 1.81303 | D30: 1.18230 | J30: -2.19 | K30: 0.1119167486 | L30: 8.935213115 | M30: -4.411648183
A31: -0.58 | B31: 0.55990 | C31: 1.78604 | D31: 1.17297 | J31: -2.16 | K31: 0.115325121 | L31: 8.671137658 | M31: -4.277906269
A32: -0.57 | B32: 0.56836 | C32: 1.75945 | D32: 1.16390 | J32: -2.13 | K32: 0.1188372939 | L32: 8.414866811 | M32: -4.148014759
A33: -0.55 | B33: 0.57695 | C33: 1.73325 | D33: 1.15510 | J33: -2.1 | K33: 0.1224564283 | L33: 8.166169913 | M33: -4.021856742
A34: -0.54 | B34: 0.58567 | C34: 1.70745 | D34: 1.14656 | J34: -2.07 | K34: 0.1261857817 | L34: 7.924823118 | M34: -3.899318668
A35: -0.52 | B35: 0.59452 | C35: 1.68203 | D35: 1.13827 | J35: -2.04 | K35: 0.1300287109 | L35: 7.690609199 | M35: -3.780290244
A36: =A35+dx -> -0.51 | B36: 0.60351 | C36: 1.65699 | D36: 1.13025 | J36: =J35+dxx -> -2.01 | K36: 0.1339886747 | L36: 7.463317347 | M36: -3.664664336
A37: -0.49 | B37: 0.61263 | C37: 1.63232 | D37: 1.12247 | J37: -1.98 | K37: 0.1380692373 | L37: 7.242742985 | M37: -3.552336874
A38: -0.48 | B38: 0.62189 | C38: 1.60801 | D38: 1.11495 | J38: -1.95 | K38: 0.1422740716 | L38: 7.028687581 | M38: -3.443206755
A39: -0.46 | B39: 0.63128 | C39: 1.58407 | D39: 1.10768 | J39: -1.92 | K39: 0.1466069621 | L39: 6.820958469 | M39: -3.337175754
A40: -0.45 | B40: 0.64082 | C40: 1.56049 | D40: 1.10066 | J40: -1.89 | K40: 0.1510718088 | L40: 6.619368681 | M40: -3.234148436
A41: -0.43 | B41: 0.65051 | C41: 1.53726 | D41: 1.09388 | J41: -1.86 | K41: 0.1556726304 | L41: 6.423736771 | M41: -3.134032071
A42: -0.41 | B42: 0.66034 | C42: 1.51437 | D42: 1.08736 | J42: -1.83 | K42: 0.1604135678 | L42: 6.233886659 | M42: -3.036736545
A43: -0.40 | B43: 0.67032 | C43: 1.49182 | D43: 1.08107 | J43: -1.8 | K43: 0.1652988882 | L43: 6.049647464 | M43: -2.942174288
A44: -0.38 | B44: 0.68045 | C44: 1.46961 | D44: 1.07503 | J44: -1.77 | K44: 0.1703329888 | L44: 5.870853361 | M44: -2.850260186
A45: -0.37 | B45: 0.69073 | C45: 1.44773 | D45: 1.06923 | J45: -1.74 | K45: 0.1755204006 | L45: 5.697343423 | M45: -2.760911511
A46: -0.35 | B46: 0.70117 | C46: 1.42618 | D46: 1.06368 | J46: -1.71 | K46: 0.1808657926 | L46: 5.528961478 | M46: -2.674047843
A47: -0.34 | B47: 0.71177 | C47: 1.40495 | D47: 1.05836 | J47: -1.68 | K47: 0.186373976 | L47: 5.365555971 | M47: -2.589590998
A48: -0.32 | B48: 0.72253 | C48: 1.38403 | D48: 1.05328 | J48: -1.65 | K48: 0.1920499086 | L48: 5.206979827 | M48: -2.507464959
A49: -0.31 | B49: 0.73345 | C49: 1.36343 | D49: 1.04844 | J49: -1.62 | K49: 0.1978986991 | L49: 5.053090317 | M49: -2.427595809
A50: -0.29 | B50: 0.74453 | C50: 1.34313 | D50: 1.04383 | J50: -1.59 | K50: 0.2039256117 | L50: 4.903748928 | M50: -2.349911658
A51: -0.28 | B51: 0.75578 | C51: 1.32313 | D51: 1.03946 | J51: -1.56 | K51: 0.2101360712 | L51: 4.758821245 | M51: -2.274342587
A52: -0.26 | B52: 0.76721 | C52: 1.30343 | D52: 1.03532 | J52: -1.53 | K52: 0.2165356673 | L52: 4.618176822 | M52: -2.200820577
A53: -0.25 | B53: 0.77880 | C53: 1.28403 | D53: 1.03141 | J53: -1.5 | K53: 0.2231301601 | L53: 4.48168907 | M53: -2.129279455
A54: -0.23 | B54: 0.79057 | C54: 1.26491 | D54: 1.02774 | J54: -1.47 | K54: 0.2299254852 | L54: 4.349235141 | M54: -2.059654828
A55: -0.22 | B55: 0.80252 | C55: 1.24608 | D55: 1.02430 | J55: -1.44 | K55: 0.2369277587 | L55: 4.220695817 | M55: -1.991884029
A56: -0.20 | B56: 0.81465 | C56: 1.22753 | D56: 1.02109 | J56: -1.41 | K56: 0.2441432832 | L56: 4.095955404 | M56: -1.92590606
A57: -0.19 | B57: 0.82696 | C57: 1.20925 | D57: 1.01810 | J57: -1.38 | K57: 0.2515785531 | L57: 3.974901627 | M57: -1.861661537
A58: -0.17 | B58: 0.83946 | C58: 1.19125 | D58: 1.01535 | J58: -1.35 | K58: 0.2592402606 | L58: 3.857425531 | M58: -1.799092635
A59: -0.16 | B59: 0.85214 | C59: 1.17351 | D59: 1.01283 | J59: -1.32 | K59: 0.267135302 | L59: 3.743421377 | M59: -1.738143038
A60: -0.14 | B60: 0.86502 | C60: 1.15604 | D60: 1.01053 | J60: -1.29 | K60: 0.2752707831 | L60: 3.632786556 | M60: -1.678757886
A61: -0.13 | B61: 0.87810 | C61: 1.13883 | D61: 1.00846 | J61: -1.26 | K61: 0.2836540265 | L61: 3.525421487 | M61: -1.62088373
A62: -0.11 | B62: 0.89137 | C62: 1.12187 | D62: 1.00662 | J62: -1.23 | K62: 0.2922925777 | L62: 3.421229536 | M62: -1.564468479
A63: -0.10 | B63: 0.90484 | C63: 1.10517 | D63: 1.00500 | J63: -1.2 | K63: 0.3011942119 | L63: 3.320116923 | M63: -1.509461355
A64: -0.08 | B64: 0.91851 | C64: 1.08872 | D64: 1.00361 | J64: -1.17 | K64: 0.3103669413 | L64: 3.221992639 | M64: -1.455812849
A65: -0.07 | B65: 0.93239 | C65: 1.07251 | D65: 1.00245 | J65: -1.14 | K65: 0.3198190218 | L65: 3.126768365 | M65: -1.403474672
A66: -0.05 | B66: 0.94649 | C66: 1.05654 | D66: 1.00151 | J66: -1.11 | K66: 0.3295589611 | L66: 3.034358394 | M66: -1.352399717
A67: -0.04 | B67: 0.96079 | C67: 1.04081 | D67: 1.00080 | J67: -1.08 | K67: 0.3395955256 | L67: 2.944679551 | M67: -1.302542013
A68: =A67+dx -> -0.02 | B68: =EXP(A68) -> 0.97531 | C68: =EXP(-A68) -> 1.02532 | D68: =(B68+C68)/2 -> 1.00031 | J68: =J67+dxx -> -1.05 | K68: 0.3499377491 | L68: 2.857651118 | M68: -1.253856684
A69: -0.01 | B69: 0.99005 | C69: 1.01005 | D69: 1.00005 | J69: -1.02 | K69: =EXP(J69) -> 0.3605949402 | L69: =EXP(-J69) -> 2.773194764 | M69: =(K69-L69)/2 -> -1.206299912
A70: 0.01 | B70: 1.00501 | C70: 0.99501 | D70: 1.00001 | J70: -0.99 | K70: 0.371576691 | L70: 2.691234472 | M70: -1.159828891
A71: 0.02 | B71: 1.02020 | C71: 0.98020 | D71: 1.00020 | J71: -0.96 | K71: 0.382892886 | L71: 2.611696473 | M71: -1.114401794
A72: 0.04 | B72: 1.03562 | C72: 0.96561 | D72: 1.00061 | J72: -0.93 | K72: 0.3945537104 | L72: 2.534509178 | M72: -1.069977734
A73: 0.05 | B73: 1.05127 | C73: 0.95123 | D73: 1.00125 | J73: -0.9 | K73: 0.4065696597 | L73: 2.459603111 | M73: -1.026516726
A74: 0.07 | B74: 1.06716 | C74: 0.93707 | D74: 1.00211 | J74: -0.87 | K74: 0.4189515492 | L74: 2.386910854 | M74: -0.9839796521
A75: 0.08 | B75: 1.08329 | C75: 0.92312 | D75: 1.00320 | J75: -0.84 | K75: 0.4317105234 | L75: 2.316366977 | M75: -0.9423282267
A76: 0.10 | B76: 1.09966 | C76: 0.90937 | D76: 1.00452 | J76: -0.81 | K76: 0.4448580662 | L76: 2.247907987 | M76: -0.9015249602
A77: 0.11 | B77: 1.11628 | C77: 0.89583 | D77: 1.00606 | J77: -0.78 | K77: 0.4584060113 | L77: 2.181472265 | M77: -0.8615331271
A78: 0.13 | B78: 1.13315 | C78: 0.88250 | D78: 1.00782 | J78: -0.75 | K78: 0.4723665527 | L78: 2.117000017 | M78: -0.8223167319
A79: 0.14 | B79: 1.15027 | C79: 0.86936 | D79: 1.00982 | J79: -0.72 | K79: 0.486752256 | L79: 2.054433211 | M79: -0.7838404773
A80: 0.16 | B80: 1.16766 | C80: 0.85642 | D80: 1.01204 | J80: -0.69 | K80: 0.5015760691 | L80: 1.993715533 | M80: -0.7460697321
A81: 0.17 | B81: 1.18530 | C81: 0.84366 | D81: 1.01448 | J81: -0.66 | K81: 0.5168513345 | L81: 1.934792334 | M81: -0.7089705
A82: 0.19 | B82: 1.20322 | C82: 0.83110 | D82: 1.01716 | J82: -0.63 | K82: 0.532591801 | L82: 1.877610579 | M82: -0.6725093891
A83: 0.20 | B83: 1.22140 | C83: 0.81873 | D83: 1.02007 | J83: -0.6 | K83: 0.5488116361 | L83: 1.8221188 | M83: -0.6366535821
A84: 0.22 | B84: 1.23986 | C84: 0.80654 | D84: 1.02320 | J84: -0.57 | K84: 0.5655254387 | L84: 1.768267051 | M84: -0.6013708064
A85: 0.23 | B85: 1.25860 | C85: 0.79453 | D85: 1.02657 | J85: -0.54 | K85: 0.5827482524 | L85: 1.716006862 | M85: -0.5666293049
A86: 0.25 | B86: 1.27762 | C86: 0.78270 | D86: 1.03016 | J86: -0.51 | K86: 0.6004955788 | L86: 1.665291195 | M86: -0.5323978081
A87: 0.26 | B87: 1.29693 | C87: 0.77105 | D87: 1.03399 | J87: -0.48 | K87: 0.6187833918 | L87: 1.616074402 | M87: -0.4986455052
A88: 0.28 | B88: 1.31653 | C88: 0.75957 | D88: 1.03805 | J88: -0.45 | K88: 0.6376281516 | L88: 1.568312185 | M88: -0.4653420169
A89: 0.29 | B89: 1.33643 | C89: 0.74826 | D89: 1.04235 | J89: -0.42 | K89: 0.6570468198 | L89: 1.521961556 | M89: -0.4324573679
A90: 0.31 | B90: 1.35663 | C90: 0.73712 | D90: 1.04687 | J90: -0.39 | K90: 0.6770568745 | L90: 1.476980794 | M90: -0.3999619597
A91: 0.32 | B91: 1.37713 | C91: 0.72615 | D91: 1.05164 | J91: -0.36 | K91: 0.6976763261 | L91: 1.433329415 | M91: -0.3678265442
A92: 0.34 | B92: 1.39794 | C92: 0.71534 | D92: 1.05664 | J92: -0.33 | K92: 0.7189237334 | L92: 1.390968128 | M92: -0.3360221975
A93: 0.35 | B93: 1.41907 | C93: 0.70469 | D93: 1.06188 | J93: -0.3 | K93: 0.7408182207 | L93: 1.349858808 | M93: -0.3045202934
A94: 0.37 | B94: 1.44051 | C94: 0.69420 | D94: 1.06736 | J94: -0.27 | K94: 0.7633794943 | L94: 1.309964451 | M94: -0.2732924782
A95: 0.38 | B95: 1.46228 | C95: 0.68386 | D95: 1.07307 | J95: -0.24 | K95: 0.7866278611 | L95: 1.27124915 | M95: -0.2423106446
A96: 0.40 | B96: 1.48438 | C96: 0.67368 | D96: 1.07903 | J96: -0.21 | K96: 0.810584246 | L96: 1.23367806 | M96: -0.211546907
A97: 0.41 | B97: 1.50682 | C97: 0.66365 | D97: 1.08523 | J97: -0.18 | K97: 0.8352702114 | L97: 1.197217363 | M97: -0.1809735759
A98: 0.43 | B98: 1.52959 | C98: 0.65377 | D98: 1.09168 | J98: -0.15 | K98: 0.8607079764 | L98: 1.161834243 | M98: -0.1505631332
A99: 0.44 | B99: 1.55271 | C99: 0.64404 | D99: 1.09837 | J99: -0.12 | K99: 0.8869204367 | L99: 1.127496852 | M99: -0.1202882074
A100: =A99+dx -> 0.46 | B100: 1.57617 | C100: 0.63445 | D100: 1.10531 | J100: =J99+dxx -> -0.09 | K100: 0.9139311853 | L100: 1.094174284 | M100: -0.09012154922
A101: 0.47 | B101: 1.59999 | C101: 0.62500 | D101: 1.11250 | J101: -0.06 | K101: 0.9417645336 | L101: 1.061836547 | M101: -0.06003600648
A102: 0.49 | B102: 1.62418 | C102: 0.61570 | D102: 1.11994 | J102: -0.03 | K102: 0.9704455335 | L102: 1.030454534 | M102: -0.0300045002
A103: 0.50 | B103: 1.64872 | C103: 0.60653 | D103: 1.12763 | J103: -4.912736884e-15 | K103: 1 | L103: 1 | M103: -4.884981308e-15
A104: 0.52 | B104: 1.67364 | C104: 0.59750 | D104: 1.13557 | J104: 0.03 | K104: 1.030454534 | L104: 0.9704455335 | M104: 0.0300045002
A105: 0.53 | B105: 1.69893 | C105: 0.58860 | D105: 1.14377 | J105: 0.06 | K105: 1.061836547 | L105: 0.9417645336 | M105: 0.06003600648
A106: 0.55 | B106: 1.72461 | C106: 0.57984 | D106: 1.15223 | J106: 0.09 | K106: 1.094174284 | L106: 0.9139311853 | M106: 0.09012154922
A107: 0.56 | B107: 1.75067 | C107: 0.57121 | D107: 1.16094 | J107: 0.12 | K107: 1.127496852 | L107: 0.8869204367 | M107: 0.1202882074
A108: 0.58 | B108: 1.77713 | C108: 0.56270 | D108: 1.16992 | J108: 0.15 | K108: 1.161834243 | L108: 0.8607079764 | M108: 0.1505631332
A109: 0.59 | B109: 1.80399 | C109: 0.55433 | D109: 1.17916 | J109: 0.18 | K109: 1.197217363 | L109: 0.8352702114 | M109: 0.1809735759
A110: 0.61 | B110: 1.83125 | C110: 0.54607 | D110: 1.18866 | J110: 0.21 | K110: 1.23367806 | L110: 0.810584246 | M110: 0.211546907
A111: 0.62 | B111: 1.85893 | C111: 0.53794 | D111: 1.19844 | J111: 0.24 | K111: 1.27124915 | L111: 0.7866278611 | M111: 0.2423106446
A112: 0.64 | B112: 1.88702 | C112: 0.52994 | D112: 1.20848 | J112: 0.27 | K112: 1.309964451 | L112: 0.7633794943 | M112: 0.2732924782
A113: 0.65 | B113: 1.91554 | C113: 0.52205 | D113: 1.21879 | J113: 0.3 | K113: 1.349858808 | L113: 0.7408182207 | M113: 0.3045202934
A114: 0.67 | B114: 1.94449 | C114: 0.51427 | D114: 1.22938 | J114: 0.33 | K114: 1.390968128 | L114: 0.7189237334 | M114: 0.3360221975
A115: 0.68 | B115: 1.97388 | C115: 0.50662 | D115: 1.24025 | J115: 0.36 | K115: 1.433329415 | L115: 0.6976763261 | M115: 0.3678265442
A116: 0.70 | B116: 2.00371 | C116: 0.49907 | D116: 1.25139 | J116: 0.39 | K116: 1.476980794 | L116: 0.6770568745 | M116: 0.3999619597
A117: 0.71 | B117: 2.03399 | C117: 0.49164 | D117: 1.26282 | J117: 0.42 | K117: 1.521961556 | L117: 0.6570468198 | M117: 0.4324573679
A118: 0.73 | B118: 2.06473 | C118: 0.48432 | D118: 1.27453 | J118: 0.45 | K118: 1.568312185 | L118: 0.6376281516 | M118: 0.4653420169
A119: 0.74 | B119: 2.09594 | C119: 0.47711 | D119: 1.28652 | J119: 0.48 | K119: 1.616074402 | L119: 0.6187833918 | M119: 0.4986455052
A120: 0.76 | B120: 2.12761 | C120: 0.47001 | D120: 1.29881 | J120: 0.51 | K120: 1.665291195 | L120: 0.6004955788 | M120: 0.5323978081
A121: 0.77 | B121: 2.15977 | C121: 0.46301 | D121: 1.31139 | J121: 0.54 | K121: 1.716006862 | L121: 0.5827482524 | M121: 0.5666293049
A122: 0.79 | B122: 2.19241 | C122: 0.45612 | D122: 1.32426 | J122: 0.57 | K122: 1.768267051 | L122: 0.5655254387 | M122: 0.6013708064
A123: 0.80 | B123: 2.22554 | C123: 0.44933 | D123: 1.33743 | J123: 0.6 | K123: 1.8221188 | L123: 0.5488116361 | M123: 0.6366535821
A124: 0.82 | B124: 2.25918 | C124: 0.44264 | D124: 1.35091 | J124: 0.63 | K124: 1.877610579 | L124: 0.532591801 | M124: 0.6725093891
A125: 0.83 | B125: 2.29332 | C125: 0.43605 | D125: 1.36468 | J125: 0.66 | K125: 1.934792334 | L125: 0.5168513345 | M125: 0.7089705
A126: 0.85 | B126: 2.32798 | C126: 0.42956 | D126: 1.37877 | J126: 0.69 | K126: 1.993715533 | L126: 0.5015760691 | M126: 0.7460697321
A127: 0.86 | B127: 2.36316 | C127: 0.42316 | D127: 1.39316 | J127: 0.72 | K127: 2.054433211 | L127: 0.486752256 | M127: 0.7838404773
A128: 0.88 | B128: 2.39888 | C128: 0.41686 | D128: 1.40787 | J128: 0.75 | K128: 2.117000017 | L128: 0.4723665527 | M128: 0.8223167319
A129: 0.89 | B129: 2.43513 | C129: 0.41066 | D129: 1.42289 | J129: 0.78 | K129: 2.181472265 | L129: 0.4584060113 | M129: 0.8615331271
A130: 0.91 | B130: 2.47193 | C130: 0.40454 | D130: 1.43824 | J130: 0.81 | K130: 2.247907987 | L130: 0.4448580662 | M130: 0.9015249602
A131: 0.92 | B131: 2.50929 | C131: 0.39852 | D131: 1.45390 | J131: 0.84 | K131: 2.316366977 | L131: 0.4317105234 | M131: 0.9423282267
A132: =A131+dx -> 0.94 | B132: =EXP(A132) -> 2.54721 | C132: =EXP(-A132) -> 0.39259 | D132: =(B132+C132)/2 -> 1.46990 | J132: =J131+dxx -> 0.87 | K132: 2.386910854 | L132: 0.4189515492 | M132: 0.9839796521
A133: 0.95 | B133: 2.58571 | C133: 0.38674 | D133: 1.48623 | J133: 0.9 | K133: =EXP(J133) -> 2.459603111 | L133: =EXP(-J133) -> 0.4065696597 | M133: =(K133-L133)/2 -> 1.026516726
A134: 0.97 | B134: 2.62479 | C134: 0.38098 | D134: 1.50289 | J134: 0.93 | K134: 2.534509178 | L134: 0.3945537104 | M134: 1.069977734
A135: 0.98 | B135: 2.66446 | C135: 0.37531 | D135: 1.51988 | J135: 0.96 | K135: 2.611696473 | L135: 0.382892886 | M135: 1.114401794
A136: 1.00 | B136: 2.70472 | C136: 0.36972 | D136: 1.53722 | J136: 0.99 | K136: 2.691234472 | L136: 0.371576691 | M136: 1.159828891
A137: 1.01 | B137: 2.74560 | C137: 0.36422 | D137: 1.55491 | J137: 1.02 | K137: 2.773194764 | L137: 0.3605949402 | M137: 1.206299912
A138: 1.03 | B138: 2.78710 | C138: 0.35880 | D138: 1.57295 | J138: 1.05 | K138: 2.857651118 | L138: 0.3499377491 | M138: 1.253856684
A139: 1.04 | B139: 2.82922 | C139: 0.35345 | D139: 1.59134 | J139: 1.08 | K139: 2.944679551 | L139: 0.3395955256 | M139: 1.302542013
A140: 1.06 | B140: 2.87198 | C140: 0.34819 | D140: 1.61008 | J140: 1.11 | K140: 3.034358394 | L140: 0.3295589611 | M140: 1.352399717
A141: 1.07 | B141: 2.91538 | C141: 0.34301 | D141: 1.62919 | J141: 1.14 | K141: 3.126768365 | L141: 0.3198190218 | M141: 1.403474672
A142: 1.09 | B142: 2.95944 | C142: 0.33790 | D142: 1.64867 | J142: 1.17 | K142: 3.221992639 | L142: 0.3103669413 | M142: 1.455812849
A143: 1.10 | B143: 3.00417 | C143: 0.33287 | D143: 1.66852 | J143: 1.2 | K143: 3.320116923 | L143: 0.3011942119 | M143: 1.509461355
A144: 1.12 | B144: 3.04957 | C144: 0.32792 | D144: 1.68874 | J144: 1.23 | K144: 3.421229536 | L144: 0.2922925777 | M144: 1.564468479
A145: 1.13 | B145: 3.09566 | C145: 0.32303 | D145: 1.70934 | J145: 1.26 | K145: 3.525421487 | L145: 0.2836540265 | M145: 1.62088373
A146: 1.15 | B146: 3.14244 | C146: 0.31822 | D146: 1.73033 | J146: 1.29 | K146: 3.632786556 | L146: 0.2752707831 | M146: 1.678757886
A147: 1.16 | B147: 3.18993 | C147: 0.31349 | D147: 1.75171 | J147: 1.32 | K147: 3.743421377 | L147: 0.267135302 | M147: 1.738143038
A148: 1.18 | B148: 3.23814 | C148: 0.30882 | D148: 1.77348 | J148: 1.35 | K148: 3.857425531 | L148: 0.2592402606 | M148: 1.799092635
A149: 1.19 | B149: 3.28708 | C149: 0.30422 | D149: 1.79565 | J149: 1.38 | K149: 3.974901627 | L149: 0.2515785531 | M149: 1.861661537
A150: 1.21 | B150: 3.33676 | C150: 0.29969 | D150: 1.81823 | J150: 1.41 | K150: 4.095955404 | L150: 0.2441432832 | M150: 1.92590606
A151: 1.22 | B151: 3.38719 | C151: 0.29523 | D151: 1.84121 | J151: 1.44 | K151: 4.220695817 | L151: 0.2369277587 | M151: 1.991884029
A152: 1.24 | B152: 3.43838 | C152: 0.29083 | D152: 1.86461 | J152: 1.47 | K152: 4.349235141 | L152: 0.2299254852 | M152: 2.059654828
A153: 1.25 | B153: 3.49034 | C153: 0.28650 | D153: 1.88842 | J153: 1.5 | K153: 4.48168907 | L153: 0.2231301601 | M153: 2.129279455
A154: 1.27 | B154: 3.54309 | C154: 0.28224 | D154: 1.91267 | J154: 1.53 | K154: 4.618176822 | L154: 0.2165356673 | M154: 2.200820577
A155: 1.28 | B155: 3.59664 | C155: 0.27804 | D155: 1.93734 | J155: 1.56 | K155: 4.758821245 | L155: 0.2101360712 | M155: 2.274342587
A156: 1.30 | B156: 3.65100 | C156: 0.27390 | D156: 1.96245 | J156: 1.59 | K156: 4.903748928 | L156: 0.2039256117 | M156: 2.349911658
A157: 1.31 | B157: 3.70617 | C157: 0.26982 | D157: 1.98800 | J157: 1.62 | K157: 5.053090317 | L157: 0.1978986991 | M157: 2.427595809
A158: 1.33 | B158: 3.76219 | C158: 0.26580 | D158: 2.01399 | J158: 1.65 | K158: 5.206979827 | L158: 0.1920499086 | M158: 2.507464959
A159: 1.34 | B159: 3.81904 | C159: 0.26185 | D159: 2.04044 | J159: 1.68 | K159: 5.365555971 | L159: 0.186373976 | M159: 2.589590998
A160: 1.36 | B160: 3.87676 | C160: 0.25795 | D160: 2.06735 | J160: 1.71 | K160: 5.528961478 | L160: 0.1808657926 | M160: 2.674047843
A161: 1.37 | B161: 3.93535 | C161: 0.25411 | D161: 2.09473 | J161: 1.74 | K161: 5.697343423 | L161: 0.1755204006 | M161: 2.760911511
A162: 1.39 | B162: 3.99483 | C162: 0.25032 | D162: 2.12257 | J162: 1.77 | K162: 5.870853361 | L162: 0.1703329888 | M162: 2.850260186
A163: 1.40 | B163: 4.05520 | C163: 0.24660 | D163: 2.15090 | J163: 1.8 | K163: 6.049647464 | L163: 0.1652988882 | M163: 2.942174288
A164: =A163+dx -> 1.42 | B164: 4.11649 | C164: 0.24293 | D164: 2.17971 | J164: =J163+dxx -> 1.83 | K164: 6.233886659 | L164: 0.1604135678 | M164: 3.036736545
A165: 1.43 | B165: 4.17870 | C165: 0.23931 | D165: 2.20900 | J165: 1.86 | K165: 6.423736771 | L165: 0.1556726304 | M165: 3.134032071
A166: 1.45 | B166: 4.24185 | C166: 0.23575 | D166: 2.23880 | J166: 1.89 | K166: 6.619368681 | L166: 0.1510718088 | M166: 3.234148436
A167: 1.46 | B167: 4.30596 | C167: 0.23224 | D167: 2.26910 | J167: 1.92 | K167: 6.820958469 | L167: 0.1466069621 | M167: 3.337175754
A168: 1.48 | B168: 4.37104 | C168: 0.22878 | D168: 2.29991 | J168: 1.95 | K168: 7.028687581 | L168: 0.1422740716 | M168: 3.443206755
A169: 1.49 | B169: 4.43710 | C169: 0.22537 | D169: 2.33123 | J169: 1.98 | K169: 7.242742985 | L169: 0.1380692373 | M169: 3.552336874
A170: 1.51 | B170: 4.50415 | C170: 0.22202 | D170: 2.36309 | J170: 2.01 | K170: 7.463317347 | L170: 0.1339886747 | M170: 3.664664336
A171: 1.52 | B171: 4.57223 | C171: 0.21871 | D171: 2.39547 | J171: 2.04 | K171: 7.690609199 | L171: 0.1300287109 | M171: 3.780290244
A172: 1.54 | B172: 4.64133 | C172: 0.21546 | D172: 2.42839 | J172: 2.07 | K172: 7.924823118 | L172: 0.1261857817 | M172: 3.899318668
A173: 1.55 | B173: 4.71147 | C173: 0.21225 | D173: 2.46186 | J173: 2.1 | K173: 8.166169913 | L173: 0.1224564283 | M173: 4.021856742
A174: 1.57 | B174: 4.78267 | C174: 0.20909 | D174: 2.49588 | J174: 2.13 | K174: 8.414866811 | L174: 0.1188372939 | M174: 4.148014759
A175: 1.58 | B175: 4.85496 | C175: 0.20598 | D175: 2.53047 | J175: 2.16 | K175: 8.671137658 | L175: 0.115325121 | M175: 4.277906269
A176: 1.60 | B176: 4.92833 | C176: 0.20291 | D176: 2.56562 | J176: 2.19 | K176: 8.935213115 | L176: 0.1119167486 | M176: 4.411648183
A177: 1.61 | B177: 5.00281 | C177: 0.19989 | D177: 2.60135 | J177: 2.22 | K177: 9.207330866 | L177: 0.1086091088 | M177: 4.549360879
A178: 1.63 | B178: 5.07842 | C178: 0.19691 | D178: 2.63767 | J178: 2.25 | K178: 9.487735836 | L178: 0.1053992246 | M178: 4.691168306
A179: 1.64 | B179: 5.15517 | C179: 0.19398 | D179: 2.67457 | J179: 2.28 | K179: 9.77668041 | L179: 0.1022842067 | M179: 4.837198101
A180: 1.66 | B180: 5.23308 | C180: 0.19109 | D180: 2.71209 | J180: 2.31 | K180: 10.07442466 | L180: 0.09926125156 | M180: 4.987581702
A181: 1.67 | B181: 5.31217 | C181: 0.18825 | D181: 2.75021 | J181: 2.34 | K181: 10.38123656 | L181: 0.09632763823 | M181: 5.142454462
A182: 1.69 | B182: 5.39245 | C182: 0.18544 | D182: 2.78895 | J182: 2.37 | K182: 10.69739228 | L182: 0.09348072628 | M182: 5.301955779
A183: 1.70 | B183: 5.47395 | C183: 0.18268 | D183: 2.82832 | J183: 2.4 | K183: 11.02317638 | L183: 0.09071795329 | M183: 5.466229214
A184: 1.72 | B184: 5.55668 | C184: 0.17996 | D184: 2.86832 | J184: 2.43 | K184: 11.35888208 | L184: 0.08803683258 | M184: 5.635422624
A185: 1.73 | B185: 5.64065 | C185: 0.17728 | D185: 2.90897 | J185: 2.46 | K185: 11.70481154 | L185: 0.08543495097 | M185: 5.809688295
A186: 1.75 | B186: 5.72590 | C186: 0.17464 | D186: 2.95027 | J186: 2.49 | K186: 12.06127612 | L186: 0.08290996658 | M186: 5.989183077
A187: 1.76 | B187: 5.81244 | C187: 0.17204 | D187: 2.99224 | J187: 2.52 | K187: 12.42859666 | L187: 0.08045960675 | M187: 6.174068528
A188: 1.78 | B188: 5.90028 | C188: 0.16948 | D188: 3.03488 | J188: 2.55 | K188: 12.80710378 | L188: 0.078081666 | M188: 6.364511058
A189: 1.79 | B189: 5.98945 | C189: 0.16696 | D189: 3.07821 | J189: 2.58 | K189: 13.19713816 | L189: 0.07577400402 | M189: 6.560682078
A190: 1.81 | B190: 6.07997 | C190: 0.16447 | D190: 3.12222 | J190: 2.61 | K190: 13.59905085 | L190: 0.07353454376 | M190: 6.762758154
A191: 1.82 | B191: 6.17186 | C191: 0.16203 | D191: 3.16694 | J191: 2.64 | K191: 14.01320361 | L191: 0.07136126956 | M191: 6.970921169
A192: 1.84 | B192: 6.26513 | C192: 0.15961 | D192: 3.21237 | J192: 2.67 | K192: 14.43996919 | L192: 0.06925222531 | M192: 7.185358484
A193: 1.85 | B193: 6.35982 | C193: 0.15724 | D193: 3.25853 | J193: 2.7 | K193: 14.87973172 | L193: 0.06720551274 | M193: 7.406263106
A194: 1.87 | B194: 6.45594 | C194: 0.15490 | D194: 3.30542 | J194: 2.73 | K194: 15.33288702 | L194: 0.06521928967 | M194: 7.633833865
A195: 1.88 | B195: 6.55350 | C195: 0.15259 | D195: 3.35305 | J195: 2.76 | K195: 15.79984295 | L195: 0.06329176836 | M195: 7.86827559
A196: =A195+dx -> 1.90 | B196: =EXP(A196) -> 6.65255 | C196: =EXP(-A196) -> 0.15032 | D196: =(B196+C196)/2 -> 3.40143 | J196: =J195+dxx -> 2.79 | K196: 16.2810198 | L196: 0.06142121392 | M196: 8.109799294
A197: 1.91 | B197: 6.75309 | C197: 0.14808 | D197: 3.45058 | J197: 2.82 | K197: =EXP(J197) -> 16.77685067 | L197: =EXP(-J197) -> 0.05960594271 | M197: =(K197-L197)/2 -> 8.358622365
A198: 1.93 | B198: 6.85515 | C198: 0.14588 | D198: 3.50051 | J198: 2.85 | K198: 17.28778184 | L198: 0.05784432087 | M198: 8.61496876
A199: 1.94 | B199: 6.95875 | C199: 0.14370 | D199: 3.55123 | J199: 2.88 | K199: 17.81427318 | L199: 0.05613476283 | M199: 8.879069208
A200: 1.96 | B200: 7.06392 | C200: 0.14156 | D200: 3.60274 | J200: 2.91 | K200: 18.35679857 | L200: 0.05447572987 | M200: 9.151161419
A201: 1.97 | B201: 7.17068 | C201: 0.13946 | D201: 3.65507 | J201: 2.94 | K201: 18.91584631 | L201: 0.05286572874 | M201: 9.431490292
... 2 more rows
